fUST/lending_fUST_20250822
["ID","MTS","AMOUNT","RATE_DAILY","PERIOD"]
[380520687,1755801045662,-774.48,0.0002,2]
[380520688,1755801045671,-682.6,0.0002,2]
[380520689,1755801045681,-499.44,0.0002,2]
[380520690,1755801045690,-480.0,0.0002,2]
[380520691,1755801045699,-480.0,0.0002,2]
[380520692,1755801045709,-235.97,0.0002,2]
[380520693,1755801045718,-480.0,0.0002,2]
[380520694,1755801045728,-480.0,0.0002,2]
[380520695,1755801045738,-589.62,0.0002,2]
[380520696,1755801045747,-2349.51,0.0002,2]
[380520697,1755801045757,-480.0,0.0002,2]
[380520698,1755801045769,-849.05,0.0002,2]
[380520699,1755801045778,-1240.66,0.0002,2]
[380520700,1755801045788,-480.0,0.0002,2]
[380520701,1755801045797,-480.0,0.0002,2]
[380520702,1755801045808,-480.0,0.0002,2]
[380520703,1755801045818,-515.63,0.0002,2]
[380520704,1755801045827,-480.0,0.0002,2]
[380520705,1755801045840,-480.0,0.0002,2]
[380520706,1755801045849,-722.5,0.0002,2]
[380520707,1755801045859,-1964.54,0.0002,2]
[380520708,1755801045868,-679.31,0.0002,2]
[380520709,1755801045878,-480.0,0.0002,2]
[380520710,1755801045887,-480.0,0.0002,2]
[380520711,1755801045896,-480.0,0.0002,2]
[380520712,1755801045905,-480.0,0.0002,2]
[380520713,1755801045915,-2035.7,0.0002,2]
[380520714,1755801045925,-490.38,0.0002,2]
[380520715,1755801045935,-1455.49,0.0002,2]
[380520716,1755801045944,-480.0,0.0002,2]
[380520717,1755801045957,-480.0,0.0002,2]
[380520718,1755801045966,-1231.32,0.0002,2]
[380520720,1755801045976,-480.0,0.0002,2]
[380520721,1755801045985,-480.0,0.0002,2]
[380520722,1755801045997,-546.4,0.0002,2]
[380520723,1755801046006,-480.0,0.0002,2]
[380520724,1755801046015,-480.0,0.0002,2]
[380520725,1755801046024,-480.0,0.0002,2]
[380520726,1755801046033,-502.49,0.0002,2]
[380520727,1755801046043,-541.33,0.0002,2]
[380520728,1755801046053,-480.0,0.0002,2]
[380520729,1755801046065,-1427.87,0.0002,2]
[380520730,1755801046075,-624.28,0.0002,2]
[380520731,1755801046084,-480.0,0.0002,2]
[380520732,1755801046094,-741.69,0.0002,2]
[380520733,1755801046103,-480.0,0.0002,2]
[380520734,1755801046112,-551.63,0.0002,2]
[380520735,1755801046121,-480.0,0.0002,2]
[380520736,1755801046131,-480.0,0.0002,2]
[380520737,1755801046140,-480.0,0.0002,2]
[380520738,1755801046150,-480.0,0.0002,2]
[380520739,1755801046159,-668.84,0.0002,2]
[380520740,1755801046168,-696.83,0.0002,2]
[380520741,1755801046178,-480.0,0.0002,2]
[380520742,1755801046187,-480.0,0.0002,2]
[380520743,1755801046197,-480.0,0.0002,2]
[380520744,1755801046208,-1492.13,0.0002,2]
[380520745,1755801046217,-480.0,0.0002,2]
[380520746,1755801046226,-480.0,0.0002,2]
[380520747,1755801046236,-480.0,0.0002,2]
[380520748,1755801046245,-701.04,0.0002,2]
[380520749,1755801046254,-5000.0,0.00020009,2]
[380520750,1755801046263,-480.0,0.00020031,2]
[380520751,1755801046273,-480.0,0.00020031,2]
[380520752,1755801046282,-787.31,0.00020031,2]
[380520753,1755801046291,-4539.43,0.00020031,2]
[380520754,1755801046300,-480.0,0.00020031,2]
[380520755,1755801046309,-876.18,0.00020031,2]
[380520756,1755801046318,-5510.12,0.00020031,2]
[380520757,1755801046327,-480.0,0.00020031,2]
[380520758,1755801046336,-519.2,0.00020031,2]
[380520759,1755801046345,-4146.2,0.00020031,2]
[380520760,1755801046354,-480.0,0.00020031,2]
[380520761,1755801046363,-480.0,0.00020031,2]
[380520762,1755801046372,-1952.95,0.00020031,2]
[380520763,1755801046381,-480.0,0.00020031,2]
[380520764,1755801046390,-784.9,0.00020031,2]
[380520765,1755801046399,-593.63885917,0.00020068,2]
[380520766,1755801046409,-1000.0,0.00020082,2]
[380520767,1755801046418,-1000.0,0.00020082,2]
[380520768,1755801046427,-1000.0,0.00020082,2]
[380520769,1755801046437,-1000.0,0.00020082,2]
[380520770,1755801046446,-1000.0,0.00020082,2]
[380520771,1755801046456,-1000.0,0.00020082,2]
[380520772,1755801046465,-1000.0,0.00020082,2]
[380520773,1755801046475,-1000.0,0.00020082,2]
[380520774,1755801046484,-1000.0,0.00020082,2]
[380520775,1755801046493,-1000.0,0.00020082,2]
[380520776,1755801046502,-1000.0,0.00020082,2]
[380520777,1755801046511,-1000.0,0.00020082,2]
[380520778,1755801046520,-1000.0,0.00020082,2]
[380520779,1755801046530,-1000.0,0.00020082,2]
[380520780,1755801046541,-1000.0,0.00020082,2]
[380520781,1755801046550,-1000.0,0.00020082,2]
[380520782,1755801046559,-1000.0,0.00020082,2]
[380520783,1755801046568,-1000.0,0.00020082,2]
[380520784,1755801046578,-1000.0,0.00020082,2]
[380520785,1755801046587,-1000.0,0.00020082,2]
[380520786,1755801046596,-1000.0,0.00020082,2]
[380520787,1755801046605,-1000.0,0.00020082,2]
[380520788,1755801046614,-963.44914337,0.00020082,2]
[380520789,1755801046623,-496.25882972,0.00020094,2]
[380520790,1755801046632,-4206.35165898,0.00020113,2]
[380520791,1755801046641,-347.04632537,0.00020121,2]
[380520792,1755801046650,-500.0,0.00020121,2]
[380520793,1755801046659,-1000.0,0.00020121,2]
[380520794,1755801046668,-551.83599481,0.00020121,2]
[380520795,1755801046677,-1000.0,0.00020121,2]
[380520796,1755801046686,-1000.0,0.00020121,2]
[380520797,1755801046695,-1008.92533935,0.00020121,2]
[380520798,1755801046703,-729.17593998,0.00020121,2]
[380520799,1755801046712,-1000.0,0.00020121,2]
[380520800,1755801046721,-548.04642541,0.00020121,2]
[380520801,1755801046730,-500.0,0.00020121,2]
[380520802,1755801046739,-1005.64626977,0.00020121,2]
[380520803,1755801046748,-500.0,0.00020121,2]
[380520804,1755801046758,-561.43,0.00020129,2]
[380520805,1755801046769,-1291.72,0.00020129,2]
[380520806,1755801046778,-590.69892337,0.00020129,2]
[380520807,1755801046786,-1636.42,0.00020129,2]
[380520808,1755801046795,-480.0,0.00020132,2]
[380520809,1755801046806,-480.0,0.00020132,2]
[380520810,1755801046815,-480.0,0.00020132,2]
[380520811,1755801046824,-154.49321019,0.00020132,2]
[380520812,1755801046835,-480.0,0.00020132,2]
[380520813,1755801046844,-480.0,0.00020132,2]
[380520814,1755801046853,-480.0,0.00020132,2]
[380520815,1755801046862,-480.0,0.00020132,2]
[380520816,1755801046871,-480.0,0.00020132,2]
[380520817,1755801046880,-480.0,0.00020132,2]
[380520818,1755801046889,-480.0,0.00020132,2]
[380520819,1755801046898,-480.0,0.00020132,2]
[380520820,1755801046907,-299.24037405,0.00020132,2]
[380520821,1755801046917,-725.1,0.00020132,2]
[380520822,1755801046925,-480.0,0.00020132,2]
[380520823,1755801046934,-480.0,0.00020132,2]
[380520824,1755801046943,-480.0,0.00020132,2]
[380520825,1755801046953,-480.0,0.00020132,2]
[380520826,1755801046962,-480.0,0.00020132,2]
[380520827,1755801046971,-480.0,0.00020132,2]
[380520828,1755801046979,-480.0,0.00020132,2]
[380520829,1755801046988,-160.0,0.00020137,2]
[380520830,1755801046996,-151.0,0.00020191,2]
[380520831,1755801047005,-660.17333058,0.00020191,2]
[380520832,1755801047014,-480.0,0.00020234,2]
[380520833,1755801047023,-480.0,0.00020234,2]
[380520834,1755801047033,-480.0,0.00020273,2]
[380520835,1755801047042,-720.91,0.00020273,2]
[380520836,1755801047051,-480.0,0.00020273,2]
[380520837,1755801047059,-480.0,0.00020273,2]
[380520838,1755801047068,-480.0,0.00020273,2]
[380520839,1755801047077,-480.0,0.00020273,2]
[380520840,1755801047086,-480.0,0.00020273,2]
[380520841,1755801047095,-480.0,0.00020273,2]
[380520842,1755801047104,-480.0,0.00020273,2]
[380520843,1755801047113,-774.48,0.00020273,2]
[380520844,1755801047122,-682.6,0.00020273,2]
[380520845,1755801047132,-499.44,0.00020273,2]
[380520846,1755801047141,-480.0,0.00020273,2]
[380520847,1755801047150,-480.0,0.00020273,2]
[380520848,1755801047159,-480.0,0.00020273,2]
[380520849,1755801047198,-480.0,0.00020273,2]
[380520850,1755801047209,-2349.51,0.00020273,2]
[380520851,1755801047218,-480.0,0.00020273,2]
[380520852,1755801047227,-849.05,0.00020273,2]
[380520853,1755801047236,-1240.66,0.00020273,2]
[380520854,1755801047245,-480.0,0.00020273,2]
[380520855,1755801047254,-480.0,0.00020273,2]
[380520856,1755801047263,-158.16,0.00020273,2]
[380520857,1755801047271,-515.63,0.00020273,2]
[380520858,1755801047280,-410.16,0.00020273,2]
[380520859,1755801047289,-480.0,0.00020273,2]
[380520860,1755801047298,-722.5,0.00020273,2]
[380520861,1755801047307,-1964.54,0.00020273,2]
[380520862,1755801047315,-679.31,0.00020273,2]
[380520863,1755801047324,-480.0,0.00020273,2]
[380520864,1755801047333,-480.0,0.00020273,2]
[380520865,1755801047343,-480.0,0.00020273,2]
[380520866,1755801047351,-2035.7,0.00020273,2]
[380520867,1755801047360,-490.38,0.00020273,2]
[380520868,1755801047369,-1455.49,0.00020273,2]
[380520869,1755801047378,-480.0,0.00020273,2]
[380520870,1755801047386,-480.0,0.00020273,2]
[380520871,1755801047395,-1231.32,0.00020273,2]
[380520872,1755801047404,-480.0,0.00020273,2]
[380520873,1755801047413,-480.0,0.00020273,2]
[380520874,1755801047422,-546.4,0.00020273,2]
[380520875,1755801047431,-480.0,0.00020273,2]
[380520876,1755801047441,-480.0,0.00020273,2]
[380520877,1755801047450,-480.0,0.00020273,2]
[380520878,1755801047460,-502.49,0.00020273,2]
[380520879,1755801047469,-541.33,0.00020273,2]
[380520880,1755801047478,-480.0,0.00020273,2]
[380520881,1755801047487,-1427.87,0.00020273,2]
[380520882,1755801047495,-624.28,0.00020273,2]
[380520883,1755801047504,-385.58,0.00020273,2]
[380520884,1755801047513,-741.69,0.00020273,2]
[380520885,1755801047521,-480.0,0.00020273,2]
[380520886,1755801047530,-480.0,0.00020273,2]
[380520887,1755801047539,-328.74,0.00020273,2]
[380520888,1755801047548,-480.0,0.00020273,2]
[380520889,1755801047557,-480.0,0.00020273,2]
[380520890,1755801047566,-668.84,0.00020273,2]
[380520891,1755801047574,-696.83,0.00020273,2]
[380520892,1755801047583,-480.0,0.00020273,2]
[380520893,1755801047592,-480.0,0.00020273,2]
[380520894,1755801047601,-1492.13,0.00020273,2]
[380520895,1755801047610,-480.0,0.00020273,2]
[380520896,1755801047618,-480.0,0.00020273,2]
[380520897,1755801047627,-701.04,0.00020273,2]
[380520898,1755801047636,-480.0,0.00020305,2]
[380520899,1755801047645,-480.0,0.00020305,2]
[380520900,1755801047654,-787.31,0.00020305,2]
[380520901,1755801047663,-4539.43,0.00020305,2]
[380520902,1755801047671,-480.0,0.00020305,2]
[380520903,1755801047680,-876.18,0.00020305,2]
[380520904,1755801047689,-5510.12,0.00020305,2]
[380520905,1755801047698,-480.0,0.00020305,2]
[380520906,1755801047708,-519.2,0.00020305,2]
[380520907,1755801047717,-4146.2,0.00020305,2]
[380520908,1755801047726,-305.97,0.00020305,2]
[380520909,1755801047735,-480.0,0.00020305,2]
[380520910,1755801047744,-1952.95,0.00020305,2]
[380520911,1755801047753,-480.0,0.00020305,2]
[380520912,1755801047767,-784.9,0.00020305,2]
[380520913,1755801047776,-6572.42446716,0.00020354,2]
[380520914,1755801047785,-1500.0,0.00020368,2]
[380520915,1755801047794,-1500.0,0.00020368,2]
[380520916,1755801047804,-1500.0,0.00020368,2]
[380520917,1755801047813,-561.43,0.00020403,2]
[380520918,1755801047822,-1291.72,0.00020403,2]
[380520919,1755801047831,-1636.42,0.00020403,2]
[380520920,1755801047840,-480.0,0.00020406,2]
[380520921,1755801047849,-480.0,0.00020406,2]
[380520922,1755801047858,-480.0,0.00020406,2]
[380520923,1755801047867,-480.0,0.00020406,2]
[380520924,1755801047876,-480.0,0.00020406,2]
[380520925,1755801047886,-480.0,0.00020406,2]
[380520926,1755801047896,-480.0,0.00020406,2]
[380520927,1755801047905,-480.0,0.00020406,2]
[380520928,1755801047914,-609.6734093,0.00020406,2]
[380520929,1755801047924,-480.0,0.00020406,2]
[380520930,1755801047933,-256.82124552,0.00020406,2]
[380520931,1755801047942,-725.1,0.00020406,2]
[380520932,1755801047952,-444.85878499,0.00020406,2]
[380520933,1755801047962,-396.02085369,0.00020406,2]
[380520934,1755801047971,-480.0,0.00020406,2]
[380520935,1755801047980,-480.0,0.00020406,2]
[380520936,1755801047989,-12690.45384448,0.00020432,2]
[380520937,1755801047997,-232.28399145,0.00020435,2]
[380520938,1755801048006,-216.95272161,0.00020435,2]
[380520939,1755801048015,-215.86710461,0.00020435,2]
[380520940,1755801048024,-844.19128999,0.00020435,2]
[380520941,1755801048033,-160.0,0.00020435,2]
[380520942,1755801048042,-160.0,0.0002045,2]
[380520943,1755801048050,-160.0,0.0002045,2]
[380520944,1755801048059,-376.00439007,0.0002045,2]
[380520945,1755801048067,-480.0,0.00020508,2]
[380520946,1755801048077,-480.0,0.00020547,2]
[380520947,1755801048086,-720.91,0.00020547,2]
[380520948,1755801048095,-527.02969876,0.00020547,2]
[380520949,1755801048104,-480.0,0.00020547,2]
[380520950,1755801048112,-480.0,0.00020547,2]
[380520951,1755801048121,-480.0,0.00020547,2]
[380520952,1755801048130,-480.0,0.00020547,2]
[380520953,1755801048139,-480.0,0.00020547,2]
[380520954,1755801048148,-480.0,0.00020547,2]
[380520955,1755801048157,-774.48,0.00020547,2]
[380520956,1755801048166,-682.6,0.00020547,2]
[380520957,1755801048175,-499.44,0.00020547,2]
[380520958,1755801048184,-480.0,0.00020547,2]
[380520959,1755801048193,-480.0,0.00020547,2]
[380520960,1755801048202,-480.0,0.00020547,2]
[380520961,1755801048211,-480.0,0.00020547,2]
[380520962,1755801048220,-2349.51,0.00020547,2]
[380520963,1755801048230,-480.0,0.00020547,2]
[380520964,1755801048239,-849.05,0.00020547,2]
[380520965,1755801048248,-1240.66,0.00020547,2]
[380520966,1755801048257,-480.0,0.00020547,2]
[380520967,1755801048267,-480.0,0.00020547,2]
[380520968,1755801048275,-515.63,0.00020547,2]
[380520969,1755801048284,-480.0,0.00020547,2]
[380520970,1755801048294,-722.5,0.00020547,2]
[380520971,1755801048303,-1964.54,0.00020547,2]
[380520972,1755801048312,-679.31,0.00020547,2]
[380520973,1755801048321,-480.0,0.00020547,2]
[380520974,1755801048330,-480.0,0.00020547,2]
[380520975,1755801048340,-480.0,0.00020547,2]
[380520976,1755801048349,-2035.7,0.00020547,2]
[380520977,1755801048357,-490.38,0.00020547,2]
[380520978,1755801048366,-1455.49,0.00020547,2]
[380520979,1755801048375,-480.0,0.00020547,2]
[380520980,1755801048384,-480.0,0.00020547,2]
[380520981,1755801048393,-1231.32,0.00020547,2]
[380520982,1755801048402,-480.0,0.00020547,2]
[380520983,1755801048411,-546.4,0.00020547,2]
[380520984,1755801048419,-480.0,0.00020547,2]
[380520985,1755801048428,-480.0,0.00020547,2]
[380520986,1755801048437,-480.0,0.00020547,2]
[380520987,1755801048447,-480.0,0.00020547,2]
[380520988,1755801048455,-502.49,0.00020547,2]
[380520989,1755801048464,-541.33,0.00020547,2]
[380520990,1755801048473,-480.0,0.00020547,2]
[380520991,1755801048482,-1427.87,0.00020547,2]
[380520992,1755801048490,-624.28,0.00020547,2]
[380520993,1755801048499,-741.69,0.00020547,2]
[380520994,1755801048507,-480.0,0.00020547,2]
[380520995,1755801048516,-480.0,0.00020547,2]
[380520996,1755801048525,-263.36920449,0.00020547,2]
[380520997,1755801048533,-480.0,0.00020547,2]
[380520998,1755801048543,-668.84,0.00020547,2]
[380520999,1755801048552,-696.83,0.00020547,2]
[380521000,1755801048562,-480.0,0.00020547,2]
[380521001,1755801048571,-570.85047081,0.00020547,2]
[380521002,1755801048580,-1492.13,0.00020547,2]
[380521003,1755801048589,-496.69,0.00020547,2]
[380521004,1755801048597,-480.0,0.00020547,2]
[380521005,1755801048606,-701.04,0.00020547,2]
[380521006,1755801048615,-3741.6,0.00020569,3]
[380521007,1755801048624,-1870.8,0.00020569,3]
[380521008,1755801048633,-935.4,0.00020569,3]
[380521009,1755801048642,-467.7,0.00020569,3]
[380521010,1755801048651,-215.86710461,0.00020569,3]
[380521011,1755801048660,-480.0,0.00020579,2]
[380521012,1755801048669,-480.0,0.00020579,2]
[380521013,1755801048678,-787.31,0.00020579,2]
[380521014,1755801048687,-4539.43,0.00020579,2]
[380521015,1755801048695,-480.0,0.00020579,2]
[380521016,1755801048705,-876.18,0.00020579,2]
[380521017,1755801048715,-5510.12,0.00020579,2]
[380521018,1755801048723,-480.0,0.00020579,2]
[380521019,1755801048732,-519.2,0.00020579,2]
[380521020,1755801048741,-4146.2,0.00020579,2]
[380521021,1755801048750,-299.98626444,0.00020579,2]
[380521022,1755801048763,-1952.95,0.00020579,2]
[380521023,1755801048772,-480.0,0.00020579,2]
[380521024,1755801048781,-784.9,0.00020579,2]
[380521025,1755801048789,-6833.36360182,0.000206,2]
[380521026,1755801048799,-2726.81325438,0.000206,2]
[380521027,1755801048808,-1500.0,0.00020668,2]
[380521028,1755801048817,-1500.0,0.00020668,2]
[380521029,1755801048826,-1500.0,0.00020668,2]
[380521030,1755801048835,-12690.45384448,0.0002067,3]
[380521031,1755801048845,-500.0,0.00020673,2]
[380521032,1755801048854,-500.0,0.00020673,2]
[380521033,1755801048863,-500.0,0.00020673,2]
[380521034,1755801048872,-500.0,0.00020673,2]
[380521035,1755801048881,-500.0,0.00020673,2]
[380521036,1755801048890,-500.0,0.00020673,2]
[380521037,1755801048899,-217.19220965,0.00020673,2]
[380521038,1755801048908,-500.0,0.00020673,2]
[380521039,1755801048917,-500.0,0.00020673,2]
[380521040,1755801048926,-500.0,0.00020673,2]
[380521041,1755801048934,-500.0,0.00020673,2]
[380521042,1755801048944,-320.74606242,0.00020673,2]
[380521043,1755801048952,-500.0,0.00020673,2]
[380521044,1755801048962,-500.0,0.00020673,2]
[380521045,1755801048971,-340.66240419,0.00020673,2]
[380521046,1755801048980,-258.84184381,0.00020673,2]
[380521047,1755801048990,-183.24857298,0.00020673,2]
[380521048,1755801048999,-500.0,0.00020673,2]
[380521049,1755801049008,-160.30215453,0.00020673,2]
[380521050,1755801049018,-500.0,0.00020673,2]
[380521051,1755801049027,-415.6274142,0.00020673,2]
[380521052,1755801049036,-500.0,0.00020673,2]
[380521053,1755801049045,-160.73245813,0.00020673,2]
[380521054,1755801049055,-500.0,0.00020673,2]
[380521055,1755801049064,-500.0,0.00020673,2]
[380521056,1755801049073,-500.0,0.00020673,2]
[380521057,1755801049082,-561.43,0.00020677,2]
[380521058,1755801049091,-1291.72,0.00020677,2]
[380521059,1755801049100,-1636.42,0.00020677,2]
[380521060,1755801049109,-480.0,0.0002068,2]
[380521061,1755801049119,-480.0,0.0002068,2]
[380521062,1755801049128,-480.0,0.0002068,2]
[380521063,1755801049137,-219.84053699,0.0002068,2]
[380521064,1755801049146,-480.0,0.0002068,2]
[380521065,1755801049155,-480.0,0.0002068,2]
[380521066,1755801049164,-480.0,0.0002068,2]
[380521067,1755801049174,-480.0,0.0002068,2]
[380521068,1755801049184,-480.0,0.0002068,2]
[380521069,1755801049193,-725.1,0.0002068,2]
[380521070,1755801049202,-480.0,0.0002068,2]
[380521071,1755801049212,-480.0,0.0002068,2]
[380521072,1755801049222,-260.0,0.00020685,2]
[380521073,1755801049231,-260150.61689523,0.000207,2]
[380521074,1755801049353,-211226.36848268,0.000207,2]
[380521075,1755801049366,-9603.82003117,0.000207,2]
[380521076,1755801049379,-24922.73523191,0.000207,2]
[380521077,1755801049568,-303.43,0.00019452,2]
[380521078,1755801050670,-0.00476094,0.00019452,2]
[380521079,1755801050830,-480.0,0.00019209,2]
[380521080,1755801050841,-176.56523906,0.00019452,2]
[380521081,1755801050851,-480.0,0.00019726,2]
[380521082,1755801050861,-162.24476094,0.0002,2]
[380521083,1755801051019,-480.0,0.00019178,2]
[380521084,1755801051029,-317.75523906,0.0002,2]
[380521085,1755801051039,-480.0,0.00020273,2]
[380521086,1755801051049,-480.0,0.00020547,2]
[380521087,1755801051060,-73888.56476094,0.000207,2]
[380521088,1755801051072,-1549.36197548,0.000207,2]
[380521089,1755801060514,573.600644,0.00018603,2]
[380521090,1755801060893,368.540483,0.00018868,2]
[380521091,1755801061150,-160.60608691,0.00019178,2]
[380521092,1755801063982,-240.393004,0.00019134,2]
[380521093,1755801072417,203.06274016,0.00019111,2]
[380521094,1755801197907,105543.48615595,0.00019078,2]
[380521095,1755801197939,128330.88761163,0.00019078,2]
[380521100,1755801256566,-320.87413054,0.00019177,2]
[380521101,1755801259302,-240.02769705,0.00019177,2]
[380521102,1755801261995,-176.80344377,0.00019177,2]
[380521103,1755801263957,-181.08103901,0.00019177,2]
[380521104,1755801333062,164.57808423,0.00019077,2]
[380521105,1755801341945,1747.26104819,0.00019078,2]
[380521107,1755801424069,302.51602579,0.00018983,2]
[380521108,1755801481815,160.0184647,0.00019078,2]
[380521109,1755801607373,3194.61654508,0.00027282,120]
[380521110,1755801637476,1678.88839155,0.00019077,2]
[380521111,1755801888074,253.17,0.0002191,120]
[380521117,1755801931790,1469.02734258,0.00019078,2]
[380521133,1755802221149,1285.39892474,0.00019077,2]
[380521147,1755802235687,-1294.89,0.00019168,3]
[380521149,1755802235696,-647.45,0.00019168,3]
[380521151,1755802235705,-485.61,0.00019168,3]
[380521153,1755802235715,-300.0,0.00019174,2]
[380521155,1755802235724,-300.0,0.00019175,2]
[380521157,1755802235733,-300.0,0.00019175,2]
[380521159,1755802235742,-1200.0,0.00019175,2]
[380521161,1755802235752,-300.0,0.00019175,2]
[380521163,1755802235762,-300.0,0.00019175,2]
[380521165,1755802235773,-1200.0,0.00019176,2]
[380521167,1755802235783,-481.24080212,0.00019177,2]
[380521169,1755802235792,-224.11134127,0.00019177,2]
[380521171,1755802235802,-500.0,0.00019177,2]
[380521173,1755802235811,-480.0,0.00019178,2]
[380521175,1755802235820,-462.07250017,0.00019178,2]
[380521176,1755802235829,-480.0,0.00019178,2]
[380521178,1755802235839,-609.54800075,0.00019178,2]
[380521180,1755802235848,-480.0,0.00019178,2]
[380521182,1755802235857,-480.0,0.00019178,2]
[380521185,1755802235867,-474.98986139,0.00019178,2]
[380521186,1755802235876,-480.0,0.00019178,2]
[380521187,1755802235885,-480.0,0.00019178,2]
[380521188,1755802235894,-480.0,0.00019178,2]
[380521189,1755802235903,-480.0,0.00019178,2]
[380521190,1755802235913,-480.0,0.00019178,2]
[380521191,1755802235923,-570.85047081,0.00019178,2]
[380521193,1755802235934,-480.0,0.00019178,2]
[380521194,1755802235943,-480.0,0.00019178,2]
[380521196,1755802235952,-480.0,0.00019178,2]
[380521198,1755802235962,-480.0,0.00019178,2]
[380521200,1755802235971,-480.0,0.00019178,2]
[380521202,1755802235980,-480.0,0.00019178,2]
[380521204,1755802235989,-480.0,0.00019178,2]
[380521206,1755802235999,-480.0,0.00019178,2]
[380521208,1755802236008,-199.06498157,0.00019178,2]
[380521210,1755802236017,-480.0,0.00019178,2]
[380521212,1755802236026,-480.0,0.00019178,2]
[380521213,1755802236035,-673.4,0.00019178,2]
[380521215,1755802236044,-460.0,0.00019178,2]
[380521217,1755802236055,-480.0,0.00019178,2]
[380521219,1755802236063,-480.0,0.00019178,2]
[380521221,1755802236071,-463.98850853,0.00019178,2]
[380521223,1755802236080,-480.0,0.00019178,2]
[380521225,1755802236090,-480.0,0.00019178,2]
[380521227,1755802236101,-480.0,0.00019178,2]
[380521229,1755802236110,-480.0,0.00019178,2]
[380521231,1755802236119,-482.16750129,0.00019178,2]
[380521233,1755802236127,-658.33,0.00019178,2]
[380521235,1755802236137,-480.0,0.00019178,2]
[380521237,1755802236145,-480.0,0.00019178,2]
[380521239,1755802236153,-304.6730623,0.00019178,2]
[380521241,1755802236162,-480.0,0.00019178,2]
[380521243,1755802236172,-480.0,0.00019178,2]
[380521245,1755802236184,-194.37593972,0.00019178,2]
[380521247,1755802236192,-480.0,0.00019178,2]
[380521249,1755802236200,-480.0,0.00019178,2]
[380521251,1755802236209,-625.29,0.00019178,2]
[380521253,1755802236219,-480.0,0.00019178,2]
[380521255,1755802236229,-480.0,0.00019178,2]
[380521257,1755802236238,-480.0,0.00019178,2]
[380521259,1755802236247,-480.0,0.00019178,2]
[380521261,1755802236256,-480.0,0.00019178,2]
[380521263,1755802236265,-480.0,0.00019178,2]
[380521265,1755802236274,-480.0,0.00019178,2]
[380521267,1755802236283,-480.0,0.00019178,2]
[380521269,1755802236293,-480.0,0.00019178,2]
[380521271,1755802236302,-480.0,0.00019178,2]
[380521273,1755802236311,-480.0,0.00019178,2]
[380521275,1755802236320,-264.64400833,0.00019178,2]
[380521277,1755802236330,-480.0,0.00019178,2]
[380521279,1755802236340,-480.0,0.00019178,2]
[380521281,1755802236349,-480.0,0.00019178,2]
[380521283,1755802236359,-480.0,0.00019178,2]
[380521285,1755802236368,-480.0,0.00019178,2]
[380521287,1755802236377,-480.0,0.00019178,2]
[380521289,1755802236387,-480.0,0.00019178,2]
[380521291,1755802236396,-480.0,0.00019178,2]
[380521293,1755802236405,-480.0,0.00019178,2]
[380521294,1755802236415,-480.0,0.00019178,2]